fUST/lending_fUST_20260109
["ID","MTS","AMOUNT","RATE_DAILY","PERIOD"]
[401133492,1767958240013,-300.0,0.00014652,2]
[401133493,1767958240023,-300.0,0.00014652,2]
[401133494,1767958240033,-300.0,0.00014652,2]
[401133495,1767958240042,-300.0,0.00014652,2]
[401133496,1767958240051,-300.0,0.00014652,2]
[401133497,1767958240060,-300.0,0.00014652,2]
[401133498,1767958240070,-300.0,0.00014652,2]
[401133499,1767958240080,-300.0,0.00014652,2]
[401133500,1767958240089,-300.0,0.00014652,2]
[401133501,1767958240098,-300.0,0.00014652,2]
[401133502,1767958240107,-300.0,0.00014652,2]
[401133503,1767958240116,-300.0,0.00014652,2]
[401133504,1767958240126,-600.0,0.00014652,2]
[401133505,1767958240135,-2347.87260389,0.00014661,2]
[401133506,1767958240143,-1494.30413283,0.00014716,2]
[401133507,1767958240155,-900.0,0.00014768,2]
[401133508,1767958240164,-1500.0,0.00014795,2]
[401133509,1767958240173,-1500.0,0.00014795,2]
[401133510,1767958240182,-242.93732994,0.00014795,2]
[401133511,1767958240192,-1500.0,0.00014795,2]
[401133512,1767958240201,-947.49421984,0.00014795,2]
[401133513,1767958240209,-456.95332704,0.00014795,2]
[401133514,1767958240218,-1500.0,0.00014795,2]
[401133515,1767958240227,-377.0831682,0.00014798,2]
[401133516,1767958240236,-377.0831682,0.00014798,2]
[401133517,1767958240244,-377.0831682,0.00014798,2]
[401133518,1767958240253,-377.0831682,0.00014798,2]
[401133519,1767958240262,-377.0831682,0.00014798,2]
[401133520,1767958240271,-377.0831682,0.00014798,2]
[401133521,1767958240279,-100000.0,0.00014882,2]
[401133522,1767958240289,-1500.0,0.00014916,2]
[401133523,1767958240298,-2000.0,0.00014916,2]
[401133524,1767958240307,-2000.0,0.00014916,2]
[401133525,1767958240316,-2000.0,0.00014916,2]
[401133526,1767958240324,-2000.0,0.00014916,2]
[401133527,1767958240333,-2000.0,0.00014916,2]
[401133528,1767958240342,-646.90942945,0.0001493,2]
[401133529,1767958240351,-2585.05008007,0.0001493,2]
[401133531,1767958240360,-151.0,0.00014989,2]
[401133533,1767958240369,-151.0,0.00014989,2]
[401133535,1767958240377,-151.0,0.00014989,2]
[401133537,1767958240386,-200.0,0.00014989,2]
[401133539,1767958240395,-31110.0,0.00014989,2]
[401133541,1767958240404,-2398.4119403,0.00014989,2]
[401133543,1767958240413,-151.0,0.0001499,2]
[401133545,1767958240422,-151.0,0.0001499,2]
[401133547,1767958240431,-151.0,0.0001499,2]
[401133550,1767958240440,-251.921385,0.0001499,2]
[401133551,1767958240449,-251.921385,0.0001499,2]
[401133553,1767958240458,-225.566797,0.0001499,2]
[401133555,1767958240468,-251.921385,0.0001499,2]
[401133558,1767958240477,-225.566797,0.0001499,2]
[401133560,1767958240486,-251.921385,0.0001499,2]
[401133562,1767958240496,-225.566797,0.0001499,2]
[401133564,1767958240505,-225.566797,0.0001499,2]
[401133566,1767958240513,-496.47127164,0.00015058,2]
[401133568,1767958240522,-151.0,0.00015058,2]
[401133570,1767958240531,-257.134251,0.00015068,2]
[401133572,1767958240540,-800.0,0.00015068,2]
[401133573,1767958240548,-151.0,0.000151,2]
[401133574,1767958240557,-151.0,0.00015132,2]
[401133575,1767958240566,-151.0,0.00015132,2]
[401133576,1767958240576,-251.921385,0.00015132,2]
[401133577,1767958240585,-251.921385,0.00015132,2]
[401133578,1767958240594,-225.566797,0.00015132,2]
[401133579,1767958240602,-225.566797,0.00015132,2]
[401133580,1767958240612,-251.921385,0.00015132,2]
[401133581,1767958240621,-251.921385,0.00015132,2]
[401133582,1767958240630,-225.566797,0.00015132,2]
[401133583,1767958240639,-225.566797,0.00015132,2]
[401133584,1767958240648,-152.0,0.00015132,2]
[401133585,1767958240658,-151.0,0.00015132,2]
[401133586,1767958240667,-151.0,0.00015132,2]
[401133587,1767958240676,-347.0,0.00015132,2]
[401133588,1767958240685,-200.58193509,0.00015132,2]
[401133589,1767958240694,-153.55324205,0.00015132,2]
[401133590,1767958240705,-166.0,0.00015132,2]
[401133591,1767958240715,-347.0,0.00015132,2]
[401133592,1767958240724,-152.0,0.00015132,2]
[401133593,1767958240733,-166.0,0.00015132,2]
[401133594,1767958240743,-347.0,0.00015132,2]
[401133595,1767958240752,-166.0,0.00015132,2]
[401133596,1767958240761,-152.0,0.00015132,2]
[401133597,1767958240769,-347.0,0.00015132,2]
[401133598,1767958240779,-336.0,0.00015132,2]
[401133599,1767958240787,-166.0,0.00015132,2]
[401133600,1767958240796,-152.0,0.00015132,2]
[401133601,1767958240805,-336.0,0.00015132,2]
[401133602,1767958240813,-347.0,0.00015132,2]
[401133603,1767958240822,-166.0,0.00015132,2]
[401133604,1767958240832,-152.0,0.00015132,2]
[401133605,1767958240841,-336.0,0.00015132,2]
[401133606,1767958240849,-347.0,0.00015132,2]
[401133607,1767958240858,-166.0,0.00015132,2]
[401133608,1767958240867,-152.0,0.00015132,2]
[401133609,1767958240876,-336.0,0.00015132,2]
[401133610,1767958240885,-347.0,0.00015132,2]
[401133611,1767958240894,-166.0,0.00015132,2]
[401133612,1767958240903,-152.0,0.00015132,2]
[401133613,1767958240912,-336.0,0.00015132,2]
[401133614,1767958240921,-347.0,0.00015132,2]
[401133615,1767958240930,-172.0,0.00015132,2]
[401133616,1767958240939,-336.0,0.00015132,2]
[401133617,1767958240948,-347.0,0.00015132,2]
[401133618,1767958240957,-152.0,0.00015132,2]
[401133619,1767958240966,-336.0,0.00015132,2]
[401133620,1767958240975,-292.23410798,0.00015132,2]
[401133621,1767958240983,-347.0,0.00015132,2]
[401133622,1767958240992,-151.0,0.00015132,2]
[401133623,1767958241001,-151.0,0.00015132,2]
[401133624,1767958241010,-336.0,0.00015132,2]
[401133625,1767958241019,-347.0,0.00015132,2]
[401133626,1767958241027,-151.0,0.00015132,2]
[401133627,1767958241037,-336.0,0.00015132,2]
[401133628,1767958241046,-347.0,0.00015132,2]
[401133629,1767958241055,-151.0,0.00015132,2]
[401133630,1767958241064,-336.0,0.00015132,2]
[401133631,1767958241073,-347.0,0.00015132,2]
[401133632,1767958241082,-151.0,0.00015132,2]
[401133633,1767958241091,-336.0,0.00015132,2]
[401133634,1767958241236,-347.0,0.00015132,2]
[401133635,1767958241246,-151.0,0.00015132,2]
[401133636,1767958241255,-336.0,0.00015132,2]
[401133637,1767958241264,-347.0,0.00015132,2]
[401133638,1767958241272,-151.0,0.00015132,2]
[401133639,1767958241281,-151.0,0.00015132,2]
[401133640,1767958241290,-336.0,0.00015132,2]
[401133641,1767958241299,-347.0,0.00015132,2]
[401133642,1767958241308,-151.0,0.00015132,2]
[401133643,1767958241317,-191.42813363,0.00015132,2]
[401133644,1767958241326,-336.0,0.00015132,2]
[401133645,1767958241334,-347.0,0.00015132,2]
[401133646,1767958241343,-151.0,0.00015132,2]
[401133647,1767958241353,-336.0,0.00015132,2]
[401133648,1767958241361,-347.0,0.00015132,2]
[401133649,1767958241373,-151.0,0.00015132,2]
[401133650,1767958241382,-336.0,0.00015132,2]
[401133651,1767958241391,-151.0,0.00015132,2]
[401133652,1767958241400,-151.0,0.00015132,2]
[401133653,1767958241409,-347.0,0.00015132,2]
[401133654,1767958241419,-336.0,0.00015132,2]
[401133655,1767958241428,-151.0,0.00015132,2]
[401133656,1767958241437,-347.0,0.00015132,2]
[401133657,1767958241447,-336.0,0.00015132,2]
[401133658,1767958241456,-151.0,0.00015132,2]
[401133659,1767958241464,-347.0,0.00015132,2]
[401133660,1767958241473,-151.0,0.00015132,2]
[401133661,1767958241482,-336.0,0.00015132,2]
[401133662,1767958241491,-347.0,0.00015132,2]
[401133663,1767958241499,-336.0,0.00015132,2]
[401133664,1767958241508,-347.0,0.00015132,2]
[401133665,1767958241517,-151.0,0.00015132,2]
[401133666,1767958241525,-336.0,0.00015132,2]
[401133667,1767958241535,-347.0,0.00015132,2]
[401133668,1767958241544,-336.0,0.00015132,2]
[401133669,1767958241553,-151.0,0.00015132,2]
[401133670,1767958241563,-347.0,0.00015132,2]
[401133671,1767958241572,-151.0,0.00015132,2]
[401133672,1767958241581,-347.0,0.00015132,2]
[401133673,1767958241591,-151.0,0.00015132,2]
[401133674,1767958241600,-336.0,0.00015132,2]
[401133675,1767958241609,-347.0,0.00015132,2]
[401133676,1767958241618,-151.0,0.00015132,2]
[401133677,1767958241627,-336.0,0.00015132,2]
[401133678,1767958241636,-336.0,0.00015132,2]
[401133679,1767958241645,-151.0,0.00015132,2]
[401133680,1767958241654,-347.0,0.00015132,2]
[401133681,1767958241663,-151.0,0.00015132,2]
[401133682,1767958241671,-336.0,0.00015132,2]
[401133683,1767958241680,-347.0,0.00015132,2]
[401133684,1767958241689,-151.0,0.00015132,2]
[401133685,1767958241698,-336.0,0.00015132,2]
[401133686,1767958241712,-347.0,0.00015132,2]
[401133687,1767958241721,-151.0,0.00015132,2]
[401133688,1767958241730,-336.0,0.00015132,2]
[401133689,1767958241739,-347.0,0.00015132,2]
[401133690,1767958241750,-151.0,0.00015132,2]
[401133691,1767958241758,-449.17028576,0.00015132,2]
[401133692,1767958241767,-347.0,0.00015132,2]
[401133693,1767958241778,-151.0,0.00015132,2]
[401133694,1767958241787,-347.0,0.00015132,2]
[401133695,1767958241795,-151.0,0.00015132,2]
[401133696,1767958241804,-347.0,0.00015132,2]
[401133697,1767958241813,-151.0,0.00015132,2]
[401133698,1767958241822,-151.0,0.00015132,2]
[401133699,1767958241831,-347.0,0.00015132,2]
[401133700,1767958241840,-151.0,0.00015132,2]
[401133701,1767958241849,-347.0,0.00015132,2]
[401133702,1767958241858,-151.0,0.00015132,2]
[401133703,1767958241867,-347.0,0.00015132,2]
[401133704,1767958241876,-154.14921708,0.00015132,2]
[401133705,1767958241885,-347.0,0.00015132,2]
[401133706,1767958241894,-347.0,0.00015132,2]
[401133707,1767958241904,-188.09364642,0.00015132,2]
[401133708,1767958241912,-292.38778675,0.00015171,2]
[401133709,1767958241921,-800.0,0.00015222,2]
[401133710,1767958241930,-800.0,0.00015225,2]
[401133711,1767958241939,-151.0,0.00015238,2]
[401133712,1767958241948,-151.0,0.00015238,2]
[401133713,1767958241957,-800.0,0.00015251,2]
[401133714,1767958241966,-251.921385,0.00015275,2]
[401133715,1767958241975,-251.921385,0.00015275,2]
[401133716,1767958241984,-225.566797,0.00015275,2]
[401133717,1767958241993,-225.566797,0.00015275,2]
[401133718,1767958242001,-251.921385,0.00015275,2]
[401133719,1767958242010,-251.921385,0.00015275,2]
[401133720,1767958242019,-225.566797,0.00015275,2]
[401133721,1767958242027,-225.566797,0.00015275,2]
[401133722,1767958242036,-777.0,0.000153,2]
[401133723,1767958242045,-9942.97674756,0.00015303,2]
[401133724,1767958242053,-457.566,0.00015316,2]
[401133725,1767958242063,-341.72420012,0.00015316,2]
[401133726,1767958242072,-800.0,0.00015335,2]
[401133727,1767958242081,-800.0,0.00015337,2]
[401133728,1767958242090,-200.0,0.00015341,2]
[401133729,1767958242099,-500.0,0.00015341,2]
[401133730,1767958242108,-500.0,0.00015341,2]
[401133731,1767958242117,-273.48534378,0.00015341,2]
[401133732,1767958242126,-174.35129213,0.00015341,2]
[401133733,1767958242135,-500.0,0.00015341,2]
[401133734,1767958242144,-500.0,0.00015341,2]
[401133735,1767958242154,-500.0,0.00015341,2]
[401133736,1767958242162,-500.0,0.00015341,2]
[401133737,1767958242171,-500.0,0.00015341,2]
[401133738,1767958242180,-210.46861991,0.00015341,2]
[401133739,1767958242189,-500.0,0.00015341,2]
[401133740,1767958242199,-489.76585726,0.00015342,2]
[401133741,1767958242208,-2000.0,0.00015342,2]
[401133742,1767958242219,-2000.0,0.00015342,2]
[401133743,1767958242238,-2000.0,0.00015342,2]
[401133744,1767958242248,-800.0,0.00015349,2]
[401133745,1767958242256,-1300.0,0.00015356,2]
[401133746,1767958242267,-800.0,0.00015361,2]
[401133747,1767958242276,-800.0,0.00015376,2]
[401133748,1767958242285,-800.0,0.00015377,2]
[401133749,1767958242294,-800.0,0.00015378,2]
[401133750,1767958242303,-800.0,0.0001538,2]
[401133751,1767958242312,-151.0,0.000154,2]
[401133752,1767958242321,-800.0,0.000154,2]
[401133753,1767958242330,-800.0,0.00015419,2]
[401133754,1767958242340,-800.0,0.00015421,2]
[401133755,1767958242350,-800.0,0.00015422,2]
[401133756,1767958242359,-400.0,0.00015429,2]
[401133757,1767958242368,-800.0,0.00015432,2]
[401133758,1767958242377,-800.0,0.0001544,2]
[401133759,1767958242386,-800.0,0.00015444,2]
[401133760,1767958242395,-800.0,0.00015448,2]
[401133761,1767958242404,-800.0,0.0001545,2]
[401133762,1767958242413,-360.3142094,0.00015453,2]
[401133763,1767958242422,-800.0,0.00015455,2]
[401133764,1767958242431,-800.0,0.00015461,2]
[401133765,1767958242441,-897.40421659,0.00015464,2]
[401133766,1767958242451,-2500.0,0.00015464,2]
[401133767,1767958242460,-2500.0,0.00015464,2]
[401133768,1767958242470,-2500.0,0.00015464,2]
[401133769,1767958242480,-2500.0,0.00015464,2]
[401133770,1767958242489,-171.97363199,0.00015477,2]
[401133771,1767958242499,-500.0,0.00015478,2]
[401133772,1767958242509,-500.0,0.00015478,2]
[401133773,1767958242518,-500.0,0.00015478,2]
[401133774,1767958242527,-500.0,0.00015478,2]
[401133775,1767958242536,-500.0,0.00015478,2]
[401133776,1767958242545,-500.0,0.00015478,2]
[401133777,1767958242555,-500.0,0.00015478,2]
[401133778,1767958242563,-204.66173856,0.00015478,2]
[401133779,1767958242573,-500.0,0.00015478,2]
[401133780,1767958242582,-251.921385,0.00015478,2]
[401133781,1767958242592,-251.921385,0.00015478,2]
[401133782,1767958242601,-225.566797,0.00015478,2]
[401133783,1767958242611,-251.921385,0.00015478,2]
[401133784,1767958242620,-225.566797,0.00015478,2]
[401133785,1767958242630,-251.921394,0.00015478,2]
[401133786,1767958242639,-225.566797,0.00015478,2]
[401133787,1767958242648,-225.566803,0.00015478,2]
[401133788,1767958242658,-800.0,0.00015479,2]
[401133789,1767958242667,-800.0,0.00015503,2]
[401133791,1767958242676,-21586.80632037,0.00015537,2]
[401133793,1767958242685,-2487.15318209,0.00015537,2]
[401133794,1767958242694,-168.0,0.00015562,2]
[401133796,1767958242705,-168.0,0.00015588,2]
[401133797,1767958242716,-800.0,0.00015596,2]
[401133798,1767958242725,-151.0,0.000156,2]
[401133799,1767958242735,-514.84070869,0.00015606,2]
[401133800,1767958242743,-296.59935167,0.00015606,2]
[401133801,1767958242754,-500.0,0.00015615,2]
[401133802,1767958242763,-500.0,0.00015615,2]
[401133803,1767958242772,-151.12568822,0.00015615,2]
[401133804,1767958242782,-500.0,0.00015615,2]
[401133805,1767958242791,-500.0,0.00015615,2]
[401133806,1767958242800,-254.0,0.00015615,2]
[401133807,1767958242809,-500.0,0.00015615,2]
[401133808,1767958242819,-379.25171681,0.00015615,2]
[401133809,1767958242828,-500.0,0.00015615,2]
[401133810,1767958242837,-168.0,0.0001562,2]
[401133811,1767958242846,-168.0,0.00015662,2]
[401133812,1767958242858,-168.0,0.00015682,2]
[401133813,1767958242866,-151.0,0.000157,2]
[401133814,1767958242875,-4375.0,0.00015712,2]
[401133815,1767958242884,-168.0,0.00015729,2]
[401133816,1767958242893,-254.82317524,0.00015752,2]
[401133817,1767958242902,-406.8595936,0.00015752,2]
[401133818,1767958242911,-151.71242224,0.00015752,2]
[401133819,1767958242920,-300.0,0.00015752,2]
[401133820,1767958242930,-500.0,0.00015752,2]
[401133821,1767958242939,-168.0,0.00015756,2]
[401133822,1767958242948,-377.0831682,0.00015756,2]
[401133823,1767958242957,-377.0831682,0.00015756,2]
[401133824,1767958242966,-168.0,0.00015761,2]
[401133825,1767958242974,-168.0,0.00015778,2]
[401133826,1767958242984,-10000.0,0.0001579,2]
[401133827,1767958242993,-168.0,0.00015799,2]
[401133828,1767958243002,-151.0,0.000158,2]
[401133829,1767958243011,-151.0,0.000158,2]
[401133830,1767958243021,-151.0,0.000158,2]
[401133831,1767958243030,-4375.0,0.00015826,2]
[401133832,1767958243039,-587.0,0.00015834,2]
[401133833,1767958243048,-200.0,0.00015844,2]
[401133834,1767958243058,-255481.618025,0.00015845,2]
[401133835,1767958243068,-168.0,0.00015859,2]
[401133836,1767958243077,-168.0,0.00015888,2]
[401133837,1767958243086,-151.38401694,0.00015889,2]
[401133838,1767958243095,-253.84397327,0.00015889,2]
[401133839,1767958243104,-500.0,0.00015889,2]
[401133840,1767958243113,-2500.0,0.0001589,2]
[401133841,1767958243123,-2500.0,0.0001589,2]
[401133842,1767958243132,-2500.0,0.0001589,2]
[401133843,1767958243140,-5888.0,0.00015899,2]
[401133844,1767958243149,-151.0,0.000159,2]
[401133845,1767958243158,-168.0,0.00015905,2]
[401133846,1767958243168,-4375.0,0.0001593,2]
[401133847,1767958243177,-168.0,0.00015939,2]
[401133848,1767958243186,-153.0,0.00015945,2]
[401133849,1767958243195,-153.0,0.00015945,2]
[401133850,1767958243204,-153.0,0.00015945,2]
[401133851,1767958243213,-168.0,0.00015962,2]
[401133852,1767958243222,-4375.0,0.00015971,2]
[401133853,1767958243231,-5502.10361253,0.00015973,2]
[401133854,1767958243240,-5502.10361253,0.00015973,2]
[401133855,1767958243249,-168.0,0.00015982,2]
[401133856,1767958243258,-168.0,0.00015993,2]
[401133857,1767958243267,-1000.0,0.00016,2]
[401133858,1767958243276,-1000.0,0.00016,2]
[401133859,1767958243285,-7664.0,0.00016,2]
[401133860,1767958243294,-151.0,0.00016,2]
[401133861,1767958243304,-151.0,0.00016,2]
[401133862,1767958243313,-151.0,0.00016,2]
[401133863,1767958243322,-151.0,0.00016,2]
[401133864,1767958243331,-168.0,0.00016003,2]
[401133865,1767958243340,-2420.48540698,0.00016012,2]
[401133886,1767958246102,-330.42315411,0.00015759,2]
[401133887,1767958358118,524.45285123,0.00030136,120]
[401133888,1767958431754,507.33790364,0.00030136,120]
[401133889,1767958435044,512.36038901,0.00030136,120]
[401133890,1767958451783,503.00188462,0.00030136,120]
[401133891,1767958454600,200.21657839,0.00030136,120]
[401133892,1767958460200,-300.0,0.0001307,2]
[401133893,1767958460221,-500.0,0.00013071,2]
[401133894,1767958460252,-500.0,0.00013071,2]
[401133895,1767958460278,-500.0,0.00013071,2]
[401133896,1767958460299,-500.0,0.00013071,2]
[401133897,1767958460319,-500.0,0.00013071,2]
[401133898,1767958460340,-500.0,0.00013071,2]
[401133899,1767958460360,-500.0,0.00013071,2]
[401133900,1767958460382,-500.0,0.00013071,2]
[401133901,1767958460404,-500.0,0.00013071,2]
[401133902,1767958460425,-500.0,0.00013071,2]
[401133903,1767958460445,-500.0,0.00013071,2]
[401133904,1767958460466,-500.0,0.00013071,2]
[401133905,1767958460486,-252.83611793,0.00013071,2]
[401133906,1767958460506,-500.0,0.00013071,2]
[401133907,1767958460528,-500.0,0.00013071,2]
[401133908,1767958460550,-500.0,0.00013071,2]
[401133909,1767958460571,-500.0,0.00013071,2]
[401133910,1767958460598,-500.0,0.00013071,2]
[401133911,1767958460620,-500.0,0.00013071,2]
[401133912,1767958460642,-447.16388207,0.00013071,2]
[401133913,1767958465744,-52.83611793,0.00013071,2]
[401133914,1767958465765,-168.34045783,0.00013071,2]
[401133915,1767958465786,-300.0,0.00013071,2]
[401133916,1767958465806,-187.36924559,0.00013071,2]
[401133917,1767958465829,-614.86389179,0.00013071,2]
[401133918,1767958465856,-500.0,0.00013071,2]
[401133919,1767958465878,-500.0,0.00013071,2]
[401133920,1767958465900,-500.0,0.00013071,2]
[401133921,1767958465923,-500.0,0.00013071,2]
[401133922,1767958465943,-500.0,0.00013071,2]
[401133923,1767958465964,-500.0,0.00013071,2]
[401133924,1767958465985,-500.0,0.00013071,2]
[401133925,1767958466004,-500.0,0.00013071,2]
[401133926,1767958466025,-500.0,0.00013071,2]
[401133927,1767958466045,-500.0,0.00013071,2]
[401133928,1767958466066,-500.0,0.00013071,2]
[401133929,1767958466086,-500.0,0.00013071,2]
[401133930,1767958466105,-500.0,0.00013071,2]
[401133931,1767958466126,-500.0,0.00013071,2]
[401133932,1767958466150,-500.0,0.00013071,2]
[401133933,1767958466171,-500.0,0.00013071,2]
[401133934,1767958466191,-500.0,0.00013071,2]
[401133935,1767958466211,-176.59028686,0.00013071,2]
[401133936,1767958471907,-323.40971314,0.00013071,2]
[401133937,1767958471928,-500.0,0.00013071,2]
[401133938,1767958471950,-500.0,0.00013071,2]
[401133939,1767958471970,-500.0,0.00013071,2]
[401133940,1767958471991,-500.0,0.00013071,2]
[401133941,1767958472012,-500.0,0.00013071,2]
[401133942,1767958472032,-500.0,0.00013071,2]
[401133943,1767958472054,-500.0,0.00013071,2]
[401133944,1767958472074,-500.0,0.00013071,2]
[401133945,1767958472096,-500.0,0.00013071,2]
[401133946,1767958472116,-500.0,0.00013071,2]
[401133947,1767958472137,-500.0,0.00013071,2]
[401133948,1767958472157,-538.36170929,0.00013071,2]
[401133949,1767958472178,-500.0,0.00013071,2]
[401133950,1767958472199,-500.0,0.00013071,2]
[401133951,1767958472219,-500.0,0.00013071,2]
[401133952,1767958472247,-400.41264022,0.00013071,2]
[401133953,1767958472276,-500.0,0.00013071,2]
[401133954,1767958472300,-500.0,0.00013071,2]
[401133955,1767958472324,-500.0,0.00013071,2]
[401133956,1767958472350,-237.81593735,0.00013071,2]
[401133957,1767958474425,-262.18406265,0.00013071,2]
[401133958,1767958474452,-247.9330785,0.00013071,2]
[401133959,1767958474481,-9489.88285885,0.00013072,2]
[401133960,1767958554092,183.19073968,0.00030137,120]
[401133962,1767958618633,595.01074629,0.00030136,120]
[401133964,1767958876950,-500.0,0.00012542,2]
[401133966,1767958911262,501.48223884,0.00030136,120]
[401133967,1767958959426,666.0,0.00030137,120]
[401133968,1767959006624,999.0,0.00030137,120]
[401133969,1767959167792,505.68022082,0.00030136,120]
[401133970,1767959169522,505.7956096,0.00030136,120]
[401133971,1767959319031,500.0,0.00030136,120]
[401133972,1767959319270,500.0,0.00030136,120]
[401133973,1767959319523,500.0,0.00030136,120]
[401133974,1767959319742,500.0,0.00030136,120]
[401133975,1767959320008,500.0,0.00030136,120]
[401133976,1767959320222,500.0,0.00030136,120]
[401133977,1767959320460,500.0,0.00030136,120]
[401133978,1767959320693,500.0,0.00030136,120]
[401133979,1767959320927,500.0,0.00030136,120]
[401133980,1767959321195,500.0,0.00030136,120]
[401134032,1767959438359,-254.53442135,0.00011858,2]
[401134033,1767959438370,-432.49367479,0.00012528,2]
[401134034,1767959438380,-3212.3171323,0.00012542,2]
[401134035,1767959438390,-300.0,0.00012968,2]
[401134036,1767959438399,-207.62,0.00012969,2]
[401134037,1767959438409,-1183.9400032,0.00012969,2]
[401134038,1767959438420,-500.0,0.00012969,2]
[401134039,1767959438431,-500.0,0.00012969,2]
[401134040,1767959438442,-500.0,0.00012969,2]
[401134041,1767959438453,-500.0,0.00012969,2]
[401134042,1767959438463,-500.0,0.00012969,2]
[401134043,1767959438475,-500.0,0.00012969,2]
[401134044,1767959438485,-500.0,0.00012969,2]
[401134045,1767959438494,-500.0,0.00012969,2]
[401134046,1767959438503,-500.0,0.00012969,2]
[401134047,1767959438512,-500.0,0.00012969,2]
[401134048,1767959438522,-422.71889554,0.00012969,2]
[401134049,1767959438533,-373.91963268,0.00012969,2]
[401134050,1767959438542,-500.0,0.00012969,2]
[401134051,1767959438552,-500.0,0.00012969,2]
[401134052,1767959438561,-500.0,0.00012969,2]
[401134053,1767959438571,-500.0,0.00012969,2]
[401134054,1767959438580,-500.0,0.00012969,2]
[401134055,1767959438590,-500.0,0.00012969,2]
[401134056,1767959438600,-500.0,0.00012969,2]
[401134057,1767959438609,-500.0,0.00012969,2]
[401134058,1767959438619,-500.0,0.00012969,2]
[401134059,1767959438628,-500.0,0.00012969,2]
[401134060,1767959438638,-500.0,0.00012969,2]
[401134061,1767959438647,-500.0,0.00012969,2]
[401134062,1767959438657,-226.48463437,0.00012969,2]
[401134063,1767959438667,-500.0,0.00012969,2]
[401134064,1767959438677,-500.0,0.00012969,2]
[401134065,1767959438687,-582.9586876,0.00012969,2]
[401134066,1767959438696,-500.0,0.00012969,2]
[401134067,1767959438706,-500.0,0.00012969,2]
[401134068,1767959438716,-500.0,0.00012969,2]
[401134069,1767959438726,-500.0,0.00012969,2]
[401134070,1767959438736,-500.0,0.00012969,2]
[401134071,1767959438745,-14339.78462333,0.0001297,2]
[401134072,1767959438890,-1448.61147503,0.0001297,2]
[401134073,1767959438903,-28686.57796021,0.0001297,2]
[401134074,1767959438913,-1000.0,0.00012999,2]
[401134075,1767959438926,-210.46861991,0.00012999,2]
[401134076,1767959438936,-273.48534378,0.00012999,2]
[401134077,1767959438946,-500.0,0.00012999,2]
[401134078,1767959438955,-174.35129213,0.00012999,2]
[401134079,1767959438965,-500.0,0.00012999,2]
[401134080,1767959438974,-467.0,0.00012999,2]
[401134081,1767959438984,-500.0,0.00012999,2]
[401134082,1767959438994,-500.0,0.00012999,2]
[401134083,1767959439003,-500.0,0.00012999,2]
[401134084,1767959439013,-500.0,0.00012999,2]
[401134085,1767959439023,-500.0,0.00012999,2]
[401134086,1767959439033,-2508.9981214,0.00013063,2]
[401134087,1767959439042,-3094.2565029,0.00013071,2]
[401134088,1767959439051,-291.54632792,0.00013136,2]
[401134089,1767959439061,-500.0,0.00013136,2]
[401134090,1767959439071,-500.0,0.00013136,2]